fUSD/lending_fUSD_20250110
["ID","MTS","AMOUNT","RATE_DAILY","PERIOD"]
[348443906,1736531437672,-830.24,9.28e-05,2]
[348443907,1736531437681,-495.07382589,9.28e-05,2]
[348443908,1736531437691,-500.0,9.28e-05,2]
[348443909,1736531437701,-586.2,9.28e-05,2]
[348443910,1736531437714,-500.0,9.28e-05,2]
[348443911,1736531437724,-500.0,9.28e-05,2]
[348443912,1736531437734,-500.0,9.28e-05,2]
[348443913,1736531437744,-500.0,9.28e-05,2]
[348443918,1736531437959,-579.52,9.28e-05,2]
[348443920,1736531437971,-1371.51,9.28e-05,2]
[348443922,1736531437982,-634.64,9.28e-05,2]
[348443924,1736531437992,-500.0,9.28e-05,2]
[348443925,1736531438001,-2430.85,9.28e-05,2]
[348443927,1736531438011,-500.0,9.28e-05,2]
[348443929,1736531438021,-500.0,9.28e-05,2]
[348443930,1736531438030,-500.0,9.281e-05,2]
[348443932,1736531438040,-500.0,9.281e-05,2]
[348443934,1736531438050,-500.0,9.281e-05,2]
[348443937,1736531438060,-500.0,9.281e-05,2]
[348443940,1736531438069,-500.0,9.281e-05,2]
[348443942,1736531438079,-500.0,9.281e-05,2]
[348443944,1736531438089,-500.0,9.281e-05,2]
[348443946,1736531438098,-500.0,9.281e-05,2]
[348443948,1736531438108,-433.128497,9.281e-05,2]
[348443951,1736531438124,-66.871503,9.281e-05,2]
[348443953,1736531438133,-500.0,9.281e-05,2]
[348443955,1736531438143,-500.0,9.281e-05,2]
[348443957,1736531438152,-500.0,9.281e-05,2]
[348443959,1736531438162,-500.0,9.281e-05,2]
[348443961,1736531438172,-500.0,9.281e-05,2]
[348443963,1736531438181,-500.0,9.281e-05,2]
[348443965,1736531438191,-500.0,9.281e-05,2]
[348443967,1736531438201,-500.0,9.281e-05,2]
[348443969,1736531438213,-500.0,9.281e-05,2]
[348443971,1736531438222,-500.0,9.281e-05,2]
[348443973,1736531438232,-500.0,9.281e-05,2]
[348443975,1736531438242,-500.0,9.281e-05,2]
[348443977,1736531438252,-502.12987313,9.281e-05,2]
[348443979,1736531438262,-500.0,9.281e-05,2]
[348443981,1736531438272,-500.0,9.281e-05,2]
[348443983,1736531438281,-500.0,9.281e-05,2]
[348443985,1736531438291,-396.70948976,9.281e-05,2]
[348443987,1736531438300,-500.0,9.281e-05,2]
[348443989,1736531438309,-500.0,9.281e-05,2]
[348443991,1736531438319,-500.0,9.281e-05,2]
[348443993,1736531438330,-500.0,9.281e-05,2]
[348443995,1736531438339,-502.41004073,9.281e-05,2]
[348443997,1736531438349,-500.0,9.281e-05,2]
[348443999,1736531438359,-500.0,9.281e-05,2]
[348444001,1736531438369,-500.0,9.281e-05,2]
[348444003,1736531438378,-500.0,9.281e-05,2]
[348444005,1736531438388,-500.0,9.281e-05,2]
[348444008,1736531438398,-503.61121686,9.281e-05,2]
[348444010,1736531438407,-500.0,9.281e-05,2]
[348444012,1736531438417,-500.0,9.281e-05,2]
[348444014,1736531438426,-500.0,9.281e-05,2]
[348444016,1736531438436,-500.0,9.281e-05,2]
[348444017,1736531438445,-500.0,9.281e-05,2]
[348444019,1736531438456,-500.0,9.281e-05,2]
[348444020,1736531438467,-500.0,9.281e-05,2]
[348444021,1736531438476,-500.0,9.281e-05,2]
[348444022,1736531438486,-500.0,9.281e-05,2]
[348444023,1736531438495,-500.0,9.281e-05,2]
[348444024,1736531438505,-500.0,9.281e-05,2]
[348444025,1736531438515,-612.95878744,9.281e-05,2]
[348444026,1736531438524,-500.0,9.281e-05,2]
[348444027,1736531438535,-500.0,9.281e-05,2]
[348444028,1736531438544,-500.0,9.281e-05,2]
[348444029,1736531438553,-500.0,9.281e-05,2]
[348444030,1736531438563,-500.0,9.281e-05,2]
[348444031,1736531438572,-503.31562431,9.281e-05,2]
[348444032,1736531438581,-500.0,9.281e-05,2]
[348444033,1736531438591,-500.0,9.281e-05,2]
[348444034,1736531438600,-500.0,9.281e-05,2]
[348444035,1736531438610,-500.0,9.281e-05,2]
[348444036,1736531438619,-500.0,9.281e-05,2]
[348444037,1736531438629,-789.92,9.281e-05,2]
[348444038,1736531438639,-500.41546366,9.281e-05,2]
[348444039,1736531438649,-500.0,9.281e-05,2]
[348444040,1736531438658,-500.0,9.281e-05,2]
[348444041,1736531438668,-500.0,9.281e-05,2]
[348444042,1736531438677,-500.0,9.281e-05,2]
[348444043,1736531438687,-500.0,9.281e-05,2]
[348444044,1736531438697,-500.0,9.281e-05,2]
[348444045,1736531438709,-500.0,9.281e-05,2]
[348444046,1736531438719,-500.0,9.281e-05,2]
[348444047,1736531438729,-500.0,9.281e-05,2]
[348444048,1736531438739,-500.0,9.281e-05,2]
[348444049,1736531438749,-500.0,9.281e-05,2]
[348444050,1736531438759,-500.0,9.281e-05,2]
[348444051,1736531438769,-500.0,9.281e-05,2]
[348444052,1736531438779,-500.0,9.281e-05,2]
[348444053,1736531438788,-500.0,9.281e-05,2]
[348444054,1736531438798,-500.0,9.281e-05,2]
[348444055,1736531438808,-500.0,9.281e-05,2]
[348444056,1736531438818,-500.0,9.281e-05,2]
[348444057,1736531438828,-500.0,9.281e-05,2]
[348444058,1736531438837,-500.0,9.281e-05,2]
[348444059,1736531438847,-500.0,9.281e-05,2]
[348444060,1736531438856,-500.0,9.281e-05,2]
[348444061,1736531438867,-500.0,9.281e-05,2]
[348444062,1736531438876,-502.84763972,9.281e-05,2]
[348444063,1736531438887,-500.0,9.281e-05,2]
[348444064,1736531438897,-500.0,9.281e-05,2]
[348444065,1736531438907,-511.64512988,9.281e-05,2]
[348444066,1736531438920,-500.0,9.281e-05,2]
[348444067,1736531438929,-500.0,9.281e-05,2]
[348444068,1736531438939,-500.73849024,9.281e-05,2]
[348444069,1736531438951,-504.80572968,9.281e-05,2]
[348444070,1736531438967,-500.0,9.281e-05,2]
[348444071,1736531438976,-500.0,9.281e-05,2]
[348444072,1736531438986,-500.0,9.281e-05,2]
[348444073,1736531438998,-503.94076511,9.281e-05,2]
[348444074,1736531439008,-501.18495403,9.281e-05,2]
[348444075,1736531439018,-500.0,9.281e-05,2]
[348444076,1736531439028,-510.32682146,9.281e-05,2]
[348444077,1736531439037,-500.55430696,9.281e-05,2]
[348444078,1736531439047,-502.77770275,9.281e-05,2]
[348444079,1736531439057,-501.98959815,9.281e-05,2]
[348444080,1736531439067,-500.0,9.281e-05,2]
[348444081,1736531439076,-502.79418284,9.281e-05,2]
[348444082,1736531439086,-507.02323531,9.281e-05,2]
[348444083,1736531439096,-500.0,9.281e-05,2]
[348444084,1736531439105,-500.0,9.281e-05,2]
[348444085,1736531439115,-502.37593126,9.281e-05,2]
[348444086,1736531439124,-513.57,9.281e-05,2]
[348444087,1736531439134,-503.53754687,9.281e-05,2]
[348444088,1736531439144,-619.31358901,9.281e-05,2]
[348444089,1736531439154,-500.0,9.281e-05,2]
[348444090,1736531439163,-500.0,9.281e-05,2]
[348444091,1736531439173,-500.0,9.281e-05,2]
[348444092,1736531439182,-500.0,9.281e-05,2]
[348444093,1736531439191,-500.0,9.281e-05,2]
[348444094,1736531439201,-501.91871407,9.281e-05,2]
[348444095,1736531439214,-504.98313894,9.281e-05,2]
[348444096,1736531439224,-500.0,9.281e-05,2]
[348444097,1736531439234,-500.0,9.281e-05,2]
[348444098,1736531439243,-518.40687837,9.281e-05,2]
[348444099,1736531439253,-473.81776369,9.281e-05,2]
[348444100,1736531439263,-500.9300321,9.281e-05,2]
[348444102,1736531439272,-500.0,9.281e-05,2]
[348444104,1736531439282,-500.94786917,9.281e-05,2]
[348444105,1736531439291,-500.0,9.281e-05,2]
[348444106,1736531439301,-500.0,9.281e-05,2]
[348444107,1736531439311,-500.0,9.281e-05,2]
[348444108,1736531439321,-500.0,9.281e-05,2]
[348444109,1736531439332,-500.0,9.281e-05,2]
[348444110,1736531439342,-503.28476935,9.281e-05,2]
[348444111,1736531439352,-500.0,9.281e-05,2]
[348444113,1736531439362,-484.86272144,9.281e-05,2]
[348444114,1736531439371,-500.0,9.281e-05,2]
[348444115,1736531439381,-502.17902078,9.281e-05,2]
[348444116,1736531439390,-500.0,9.281e-05,2]
[348444117,1736531439400,-157.692616,9.281e-05,2]
[348444118,1736531439410,-500.0,9.281e-05,2]
[348444119,1736531439421,-500.0,9.281e-05,2]
[348444120,1736531439431,-539.22,9.281e-05,2]
[348444121,1736531439441,-591.43,9.281e-05,2]
[348444122,1736531439451,-500.0,9.281e-05,2]
[348444123,1736531439463,-500.0,9.281e-05,2]
[348444124,1736531439473,-505.90252342,9.281e-05,2]
[348444126,1736531439482,-500.96814898,9.281e-05,2]
[348444128,1736531439497,-500.0,9.281e-05,2]
[348444130,1736531439508,-503.48432863,9.281e-05,2]
[348444131,1736531439519,-504.22002476,9.281e-05,2]
[348444132,1736531439530,-504.40854434,9.281e-05,2]
[348444133,1736531439540,-500.0,9.281e-05,2]
[348444135,1736531439551,-500.0,9.281e-05,2]
[348444136,1736531439562,-500.0,9.281e-05,2]
[348444137,1736531439571,-516.4305459,9.281e-05,2]
[348444138,1736531439582,-500.0,9.281e-05,2]
[348444139,1736531439593,-500.0,9.281e-05,2]
[348444140,1736531439603,-579.74711105,9.281e-05,2]
[348444141,1736531439613,-500.0,9.281e-05,2]
[348444142,1736531439623,-540.09,9.281e-05,2]
[348444143,1736531439633,-500.0,9.281e-05,2]
[348444144,1736531439644,-503.12976115,9.281e-05,2]
[348444145,1736531439655,-509.69946807,9.281e-05,2]
[348444146,1736531439665,-500.0,9.281e-05,2]
[348444147,1736531439675,-500.0,9.281e-05,2]
[348444148,1736531439686,-500.0,9.281e-05,2]
[348444149,1736531439695,-500.0,9.281e-05,2]
[348444150,1736531439708,-500.0,9.281e-05,2]
[348444151,1736531439719,-500.0,9.281e-05,2]
[348444152,1736531439730,-505.68357027,9.281e-05,2]
[348444153,1736531439740,-500.0,9.281e-05,2]
[348444154,1736531439750,-500.0,9.281e-05,2]
[348444155,1736531439760,-500.30540941,9.281e-05,2]
[348444156,1736531439771,-500.0,9.281e-05,2]
[348444157,1736531439781,-505.8630033,9.281e-05,2]
[348444158,1736531439791,-500.0,9.281e-05,2]
[348444159,1736531439801,-505.11434079,9.281e-05,2]
[348444160,1736531439811,-504.77860858,9.281e-05,2]
[348444161,1736531439821,-549.25,9.281e-05,2]
[348444162,1736531439831,-500.0,9.281e-05,2]
[348444163,1736531439842,-501.90392986,9.281e-05,2]
[348444164,1736531439851,-500.0,9.281e-05,2]
[348444165,1736531439861,-500.0,9.281e-05,2]
[348444166,1736531439871,-500.0,9.281e-05,2]
[348444167,1736531439882,-501.32580398,9.281e-05,2]
[348444168,1736531439892,-500.0,9.281e-05,2]
[348444169,1736531439902,-500.0,9.281e-05,2]
[348444170,1736531439915,-500.0,9.281e-05,2]
[348444171,1736531439925,-500.0,9.281e-05,2]
[348444172,1736531439935,-500.0,9.281e-05,2]
[348444173,1736531439946,-500.0,9.281e-05,2]
[348444174,1736531439960,-500.0,9.281e-05,2]
[348444175,1736531439970,-500.0,9.281e-05,2]
[348444176,1736531439981,-500.0,9.281e-05,2]
[348444177,1736531439991,-500.0,9.281e-05,2]
[348444178,1736531440001,-500.0,9.281e-05,2]
[348444179,1736531440016,-500.0,9.281e-05,2]
[348444180,1736531440026,-500.0,9.281e-05,2]
[348444181,1736531440036,-200.0,9.281e-05,2]
[348444182,1736531440046,-500.0,9.281e-05,2]
[348444183,1736531440056,-500.0,9.281e-05,2]
[348444184,1736531440066,-500.0,9.281e-05,2]
[348444185,1736531440076,-500.0,9.281e-05,2]
[348444186,1736531440087,-500.0,9.281e-05,2]
[348444187,1736531440097,-500.0,9.281e-05,2]
[348444188,1736531440108,-500.0,9.281e-05,2]
[348444189,1736531440117,-504.69567588,9.281e-05,2]
[348444190,1736531440127,-1721.55,9.281e-05,2]
[348444191,1736531440138,-500.0,9.281e-05,2]
[348444192,1736531440149,-500.0,9.281e-05,2]
[348444193,1736531440160,-500.0,9.281e-05,2]
[348444194,1736531440171,-500.0,9.281e-05,2]
[348444195,1736531440182,-500.0,9.281e-05,2]
[348444197,1736531440191,-500.0,9.281e-05,2]
[348444199,1736531440202,-500.0,9.281e-05,2]
[348444201,1736531440214,-500.0,9.281e-05,2]
[348444203,1736531440224,-500.89015912,9.281e-05,2]
[348444204,1736531440234,-1078.6,9.281e-05,2]
[348444206,1736531440244,-500.0,9.281e-05,2]
[348444208,1736531440254,-500.0,9.281e-05,2]
[348444210,1736531440264,-500.0,9.281e-05,2]
[348444212,1736531440274,-500.0,9.281e-05,2]
[348444214,1736531440284,-500.0,9.281e-05,2]
[348444215,1736531440294,-500.0,9.281e-05,2]
[348444217,1736531440304,-500.0,9.281e-05,2]
[348444219,1736531440314,-500.0,9.281e-05,2]
[348444221,1736531440324,-500.0,9.281e-05,2]
[348444223,1736531440336,-500.0,9.281e-05,2]
[348444225,1736531440346,-2612.56,9.281e-05,2]
[348444227,1736531440357,-627.90564013,9.281e-05,2]
[348444229,1736531440367,-500.0,9.281e-05,2]
[348444231,1736531440377,-500.0,9.281e-05,2]
[348444233,1736531440386,-527.74,9.281e-05,2]
[348444235,1736531440396,-500.0,9.281e-05,2]
[348444247,1736531440509,-500.0,9.281e-05,2]
[348444250,1736531440519,-500.0,9.281e-05,2]
[348444252,1736531440529,-500.0,9.281e-05,2]
[348444253,1736531440538,-500.0,9.281e-05,2]
[348444255,1736531440548,-500.0,9.281e-05,2]
[348444258,1736531440559,-500.0,9.281e-05,2]
[348444260,1736531440570,-500.0,9.281e-05,2]
[348444262,1736531440580,-508.27397683,9.281e-05,2]
[348444264,1736531440590,-402.60049348,9.281e-05,2]
[348444266,1736531440599,-500.0,9.281e-05,2]
[348444268,1736531440615,-622.29,9.281e-05,2]
[348444270,1736531440625,-503.01407159,9.281e-05,2]
[348444272,1736531440635,-500.0,9.281e-05,2]
[348444274,1736531440644,-500.0,9.281e-05,2]
[348444276,1736531440653,-500.0,9.281e-05,2]
[348444278,1736531440663,-500.0,9.281e-05,2]
[348444280,1736531440673,-500.0,9.281e-05,2]
[348444282,1736531440683,-2712.8,9.281e-05,2]
[348444284,1736531440692,-500.0,9.281e-05,2]
[348444286,1736531440702,-603.85,9.281e-05,2]
[348444288,1736531440715,-500.0,9.281e-05,2]
[348444290,1736531440725,-500.0,9.281e-05,2]
[348444292,1736531440734,-500.0,9.281e-05,2]
[348444294,1736531440743,-500.0,9.281e-05,2]
[348444295,1736531440753,-500.0,9.281e-05,2]
[348444296,1736531440764,-522.58,9.281e-05,2]
[348444298,1736531440773,-500.0,9.281e-05,2]
[348444300,1736531440783,-502.26129045,9.281e-05,2]
[348444302,1736531440794,-500.0,9.281e-05,2]
[348444304,1736531440804,-500.0,9.281e-05,2]
[348444306,1736531440813,-605.23,9.281e-05,2]
[348444308,1736531440822,-500.0,9.281e-05,2]
[348444310,1736531440832,-500.0,9.281e-05,2]
[348444312,1736531440841,-500.0,9.281e-05,2]
[348444314,1736531440850,-593.11,9.281e-05,2]
[348444316,1736531440859,-605.50049419,9.281e-05,2]
[348444318,1736531440868,-500.0,9.281e-05,2]
[348444320,1736531440878,-500.0,9.281e-05,2]
[348444322,1736531440888,-500.0,9.281e-05,2]
[348444324,1736531440898,-500.0,9.281e-05,2]
[348444326,1736531440910,-525.33,9.281e-05,2]
[348444328,1736531440920,-500.0,9.281e-05,2]
[348444330,1736531440929,-1225.03,9.281e-05,2]
[348444332,1736531440938,-500.0,9.281e-05,2]
[348444334,1736531440947,-500.0,9.281e-05,2]
[348444336,1736531440960,-465.2087797,9.281e-05,2]
[348444338,1736531440969,-500.0,9.281e-05,2]
[348444340,1736531440979,-500.0,9.281e-05,2]
[348444342,1736531440989,-500.0,9.281e-05,2]
[348444344,1736531440999,-500.6847442,9.281e-05,2]
[348444345,1736531441009,-500.0,9.281e-05,2]
[348444349,1736531441032,-500.0,9.281e-05,2]
[348444351,1736531441042,-509.48776102,9.281e-05,2]
[348444353,1736531441052,-503.08948057,9.281e-05,2]
[348444355,1736531441061,-500.0,9.281e-05,2]
[348444357,1736531441071,-496.00848667,9.281e-05,2]
[348444359,1736531441082,-500.0,9.281e-05,2]
[348444361,1736531441092,-502.15797043,9.281e-05,2]
[348444362,1736531441101,-500.0,9.281e-05,2]
[348444364,1736531441111,-500.0,9.281e-05,2]
[348444366,1736531441122,-509.2330228,9.281e-05,2]
[348444368,1736531441131,-500.6378363,9.281e-05,2]
[348444370,1736531441141,-500.0,9.281e-05,2]
[348444372,1736531441150,-500.0,9.281e-05,2]
[348444374,1736531441160,-507.00761611,9.281e-05,2]
[348444376,1736531441170,-500.0,9.281e-05,2]
[348444378,1736531441179,-500.0,9.281e-05,2]
[348444380,1736531441189,-500.0,9.281e-05,2]
[348444382,1736531441199,-500.0,9.281e-05,2]
[348444384,1736531441209,-500.0,9.281e-05,2]
[348444386,1736531441219,-501.78750906,9.281e-05,2]
[348444388,1736531441228,-500.0,9.281e-05,2]
[348444390,1736531441237,-500.73850557,9.281e-05,2]
[348444392,1736531441247,-500.0,9.281e-05,2]
[348444394,1736531441258,-500.0,9.281e-05,2]
[348444396,1736531441267,-500.0,9.281e-05,2]
[348444398,1736531441278,-500.0,9.281e-05,2]
[348444400,1736531441288,-2396.3,9.281e-05,2]
[348444402,1736531441298,-509.81402224,9.281e-05,2]
[348444403,1736531441308,-500.0,9.281e-05,2]
[348444405,1736531441318,-500.0,9.281e-05,2]
[348444407,1736531441327,-500.0,9.281e-05,2]
[348444409,1736531441337,-500.0,9.281e-05,2]
[348444411,1736531441347,-500.0,9.281e-05,2]
[348444413,1736531441356,-500.0,9.281e-05,2]
[348444415,1736531441367,-500.0,9.281e-05,2]
[348444417,1736531441378,-500.0,9.281e-05,2]
[348444419,1736531441387,-500.15692838,9.281e-05,2]
[348444421,1736531441397,-500.0,9.281e-05,2]
[348444423,1736531441407,-500.0,9.281e-05,2]
[348444425,1736531441418,-500.0,9.281e-05,2]
[348444427,1736531441427,-500.0,9.281e-05,2]
[348444429,1736531441437,-500.0,9.281e-05,2]
[348444431,1736531441447,-500.0,9.281e-05,2]
[348444433,1736531441456,-519.99397386,9.281e-05,2]
[348444435,1736531441467,-500.0,9.281e-05,2]
[348444437,1736531441477,-500.0,9.281e-05,2]
[348444439,1736531441487,-500.0,9.281e-05,2]
[348444441,1736531441496,-500.0,9.281e-05,2]
[348444443,1736531441506,-500.0,9.281e-05,2]
[348444445,1736531441516,-508.71974563,9.281e-05,2]
[348444447,1736531441531,-500.0,9.281e-05,2]
[348444449,1736531441540,-500.0,9.281e-05,2]
[348444451,1736531441550,-500.0,9.281e-05,2]
[348444453,1736531441560,-503.51736161,9.281e-05,2]
[348444455,1736531441570,-500.0,9.281e-05,2]
[348444457,1736531441580,-500.0,9.281e-05,2]
[348444459,1736531441590,-500.0,9.281e-05,2]
[348444461,1736531441600,-502.02693249,9.281e-05,2]
[348444463,1736531441610,-503.00177446,9.281e-05,2]
[348444465,1736531441620,-500.0,9.281e-05,2]
[348444467,1736531441629,-500.0,9.281e-05,2]
[348444469,1736531441639,-500.0,9.281e-05,2]
[348444470,1736531441649,-500.0,9.281e-05,2]
[348444472,1736531441659,-500.0,9.281e-05,2]
[348444474,1736531441670,-502.70718081,9.281e-05,2]
[348444476,1736531441680,-500.0,9.281e-05,2]
[348444479,1736531441690,-502.12628691,9.281e-05,2]
[348444480,1736531441700,-500.0,9.281e-05,2]
[348444482,1736531441712,-500.0,9.281e-05,2]
[348444484,1736531441723,-507.89214433,9.281e-05,2]
[348444486,1736531441732,-572.45,9.281e-05,2]
[348444488,1736531441743,-506.31288482,9.281e-05,2]
[348444490,1736531441752,-584.1898712,9.281e-05,2]
[348444492,1736531441762,-500.0,9.281e-05,2]
[348444494,1736531441773,-500.0,9.281e-05,2]
[348444496,1736531441784,-500.0,9.281e-05,2]
[348444498,1736531441794,-504.84551596,9.281e-05,2]
[348444500,1736531441805,-500.0,9.281e-05,2]
[348444502,1736531441815,-522.40675204,9.281e-05,2]
[348444504,1736531441825,-500.0,9.281e-05,2]
[348444506,1736531441835,-553.52,9.281e-05,2]
[348444508,1736531441844,-500.0,9.281e-05,2]
[348444510,1736531441854,-500.0,9.281e-05,2]
[348444512,1736531441865,-500.0,9.281e-05,2]
[348444514,1736531441874,-500.0,9.281e-05,2]
[348444516,1736531441885,-585.79,9.281e-05,2]
[348444518,1736531441894,-500.0,9.281e-05,2]
[348444520,1736531441904,-611.73,9.281e-05,2]
[348444522,1736531441915,-511.46,9.281e-05,2]
[348444524,1736531441925,-792.49,9.282e-05,2]
[348444526,1736531441937,-500.0,9.282e-05,2]
[348444528,1736531441951,-935.25,9.282e-05,2]
[348444529,1736531441965,-1166.4,9.282e-05,2]
[348444531,1736531441974,-893.81,9.282e-05,2]
[348444533,1736531441985,-2578.37,9.282e-05,2]
[348444536,1736531441997,-1034.11,9.282e-05,2]
[348444538,1736531442007,-1857.48,9.282e-05,2]
[348444540,1736531442018,-1017.39,9.282e-05,2]
[348444542,1736531442027,-888.36,9.282e-05,2]
[348444544,1736531442037,-500.0,9.282e-05,2]
[348444546,1736531442047,-829.55,9.282e-05,2]
[348444548,1736531442061,-1537.53,9.282e-05,2]
[348444550,1736531442071,-504.82,9.282e-05,2]
[348444552,1736531442082,-830.64,9.282e-05,2]
[348444554,1736531442092,-686.51,9.282e-05,2]
[348444556,1736531442102,-500.0,9.282e-05,2]
[348444558,1736531442111,-604.02,9.282e-05,2]
[348444560,1736531442121,-538.66,9.282e-05,2]
[348444562,1736531442131,-1560.83,9.282e-05,2]
[348444564,1736531442142,-500.0,9.282e-05,2]
[348444566,1736531442151,-500.0,9.282e-05,2]
[348444568,1736531442161,-500.0,9.282e-05,2]
[348444570,1736531442171,-665.9,9.282e-05,2]
[348444572,1736531442181,-1075.58,9.282e-05,2]
[348444574,1736531442191,-500.0,9.282e-05,2]
[348444576,1736531442201,-679.57,9.282e-05,2]
[348444578,1736531442214,-500.0,9.282e-05,2]
[348444580,1736531442223,-944.23,9.282e-05,2]
[348444582,1736531442234,-500.0,9.282e-05,2]
[348444584,1736531442244,-581.83,9.282e-05,2]
[348444585,1736531442255,-782.79,9.282e-05,2]
[348444587,1736531442264,-1006.56,9.282e-05,2]
[348444589,1736531442275,-888.62,9.282e-05,2]
[348444591,1736531442284,-626.67,9.282e-05,2]
[348444593,1736531442294,-1744.5,9.282e-05,2]
[348444595,1736531442303,-500.0,9.282e-05,2]
[348444597,1736531442313,-3149.53,9.282e-05,2]
[348444599,1736531442322,-1527.67,9.282e-05,2]
[348444601,1736531442332,-562.15,9.283e-05,2]
[348444603,1736531442341,-2630.9,9.283e-05,2]
[348444605,1736531442351,-774.78505,9.283e-05,2]
[348444608,1736531442360,-734.386738,9.283e-05,2]
[348444611,1736531442370,-159.206517,9.283e-05,2]
[348444614,1736531442380,-656.91,9.283e-05,2]
[348444617,1736531442390,-500.0,9.283e-05,2]
[348444620,1736531442400,-500.0,9.283e-05,2]
[348444624,1736531442411,-500.0,9.283e-05,2]
[348444628,1736531442421,-2028.15,9.283e-05,2]
[348444631,1736531442430,-698.98,9.283e-05,2]
[348444636,1736531442441,-500.0,9.283e-05,2]
[348444640,1736531442451,-500.0,9.283e-05,2]
[348444644,1736531442463,-500.0,9.283e-05,2]
[348444646,1736531442473,-710.89,9.283e-05,2]
[348444651,1736531442484,-972.92,9.283e-05,2]
[348444654,1736531442494,-1178.14,9.283e-05,2]
[348444658,1736531442504,-169.330883,9.283e-05,2]
[348444662,1736531442513,-802.57,9.283e-05,2]
[348444666,1736531442524,-1000.0,9.293e-05,2]
[348444670,1736531442534,-418.5,9.309e-05,2]
[348444674,1736531442544,-150.0,9.371e-05,2]
[348444678,1736531442558,-500.0,9.444e-05,2]
[348444683,1736531442568,-500.0,9.452e-05,2]
[348444687,1736531442577,-501.0,9.479e-05,2]
[348444691,1736531442588,-500.0,9.534e-05,2]
[348444695,1736531442597,-500.0,9.553e-05,2]
[348444699,1736531442607,-500.0,9.553e-05,2]
[348444703,1736531442617,-500.0,9.553e-05,2]
[348444707,1736531442627,-500.0,9.553e-05,2]
[348444711,1736531442637,-500.0,9.553e-05,2]
[348444715,1736531442646,-500.0,9.553e-05,2]
[348444719,1736531442656,-500.0,9.553e-05,2]
[348444723,1736531442666,-500.0,9.553e-05,2]
[348444727,1736531442676,-346.33088091,9.553e-05,2]
[348444732,1736531442687,-500.0,9.553e-05,2]
[348444735,1736531442697,-500.0,9.553e-05,2]
[348444739,1736531442707,-382.43411349,9.553e-05,2]
[348444743,1736531442721,-500.0,9.553e-05,2]
[348444745,1736531442730,-500.0,9.553e-05,2]
[348444749,1736531442740,-458.68926271,9.553e-05,2]
[348444753,1736531442750,-500.0,9.553e-05,2]
[348444756,1736531442760,-418.27891747,9.553e-05,2]
[348444758,1736531442770,-500.0,9.553e-05,2]
[348444760,1736531442781,-500.0,9.553e-05,2]
[348444762,1736531442792,-500.0,9.553e-05,2]
[348444764,1736531442803,-500.0,9.553e-05,2]
[348444766,1736531442815,-500.0,9.553e-05,2]
[348444768,1736531442826,-500.0,9.553e-05,2]
[348444770,1736531442836,-522.66,9.553e-05,2]
[348444772,1736531442847,-500.0,9.553e-05,2]
[348444774,1736531442858,-500.0,9.553e-05,2]
[348444776,1736531442868,-500.0,9.553e-05,2]
[348444778,1736531442879,-504.5892749,9.553e-05,2]
[348444780,1736531442889,-500.0,9.553e-05,2]
[348444782,1736531442899,-502.99306242,9.553e-05,2]
[348444784,1736531442910,-500.0,9.553e-05,2]
[348444786,1736531442924,-508.74344871,9.553e-05,2]
[348444788,1736531442935,-500.0,9.553e-05,2]
[348444790,1736531442945,-500.0,9.553e-05,2]
[348444792,1736531442956,-500.0,9.553e-05,2]
[348444794,1736531442971,-500.0,9.553e-05,2]
[348444796,1736531442981,-504.2746399,9.553e-05,2]
[348444798,1736531442993,-500.0,9.553e-05,2]
[348444800,1736531443003,-500.0,9.553e-05,2]
[348444802,1736531443015,-500.0,9.553e-05,2]
[348444804,1736531443026,-502.09003164,9.553e-05,2]
[348444806,1736531443036,-500.67717121,9.553e-05,2]
[348444808,1736531443047,-500.0,9.553e-05,2]
[348444810,1736531443058,-500.70188659,9.553e-05,2]
[348444812,1736531443069,-500.0,9.553e-05,2]
[348444814,1736531443080,-500.0,9.553e-05,2]